{"text_format":"1","workbook":"xlsx","n_sheets":1,"sheets":["Sheet1"],"not_rendered":{"charts":0,"images":1,"macros":1,"external_links":0,"defined_names":1,"comments":0,"pivot_tables":0},"unopened":[],"bounds":{"document_bytes":16777216,"sheet_cells":100000,"rows_first":2000,"rows_last":500,"rows_between":2000,"halvings":0,"cell_chars":16384,"cell_head_chars":4096},"cells_cut":0,"cells_raw":0,"read":"whole","date_system":"1900"}

{"sheet":"Sheet1","index":0,"n_rows":21,"n_cols":12,"rows_kept":21,"cut":false,"hidden":false,"merged":[]}
[]
[]
[]
[]
[]
[]
[null,null,null,null,null,null,null,null,null,null,null,"Other Resources"]
[null,null,"Hex Color (BGR)",null,"SUM","COUNT","MIN","MAX","AVERAGE",null,null,"Blog"]
[null,4,{"$f":"GetColor(B9)","v":"84B0F4"},null,{"$f":"SUM(findcolors(ColoredCells,B9))","v":13},{"$f":"COUNT(findcolors(ColoredCells,B9))","v":2},{"$f":"MIN(findcolors(ColoredCells,B9))","v":4},{"$f":"MAX(findcolors(ColoredCells,B9))","v":9},{"$f":"AVERAGE(findcolors(ColoredCells,B9))","v":6.5},null,null,"Free Training"]
[null,5,{"$f":"GetColor(B10)","v":"F2E1D9"},null,{"$f":"SUM(findcolors(ColoredCells,B10))","v":18},{"$f":"COUNT(findcolors(ColoredCells,B10))","v":4},{"$f":"MIN(findcolors(ColoredCells,B10))","v":3},{"$f":"MAX(findcolors(ColoredCells,B10))","v":6},{"$f":"AVERAGE(findcolors(ColoredCells,B10))","v":4.5},null,null,"Excel Forum"]
[null,2,"66D9FF",null,{"$f":"SUM(findcolors(ColoredCells,B11))","v":14},{"$f":"COUNT(findcolors(ColoredCells,B11))","v":3},{"$f":"MIN(findcolors(ColoredCells,B11))","v":2},{"$f":"MAX(findcolors(ColoredCells,B11))","v":8},{"$f":"AVERAGE(findcolors(ColoredCells,B11))","v":4.666666666666667},null,null,"Excel Webinars"]
[null,4,"F2E1D9"]
[null,9,"84B0F4",null,null,null,null,null,null,null,null,"Our Courses"]
[null,6,"F2E1D9",null,null,null,null,null,null,null,null,"Excel Dashboards"]
[null,8,"66D9FF",null,null,null,null,null,null,null,null,"Power Query"]
[null,3,"F2E1D9",null,null,null,null,null,null,null,null,"Power Pivot"]
[null,4,"66D9FF",null,null,null,null,null,null,null,null,"Pivot Tables"]
[null,null,null,null,null,null,null,null,null,null,null,"Excel Expert"]
[null,null,null,null,null,null,null,null,null,null,null,"Excel for Decision Making"]
[null,null,null,null,null,null,null,null,null,null,null,"Excel for Finance"]
[null,null,null,null,null,null,null,null,null,null,null,"Excel for Customer Service Professionals"]